[Event "CZE Extraliga 2019-20"]
[Site "Czech Republic"]
[Date "2019.11.30"]
[Round "3.4"]
[White "Rasik, Vitezslav"]
[Black "Zwardon, Vojtech"]
[Result "0-1"]
[ECO "B31"]
[WhiteElo "2470"]
[BlackElo "2471"]
[Annotator "ChessBase"]
[PlyCount "116"]
[EventDate "2019.09.15"]
[EventType "team-tourn"]
[EventCountry "CZE"]
[SourceTitle "playchess.com"]
[Source "ChessBase"]
[SourceQuality "1"]
[WhiteTeam "Ostrava"]
[BlackTeam "Frydek-Mistek"]
[TimeControl "40/5400+30:1800+30"]

1. e4 {[%emt 0:00:00]} c5 {[%emt 0:00:00]} 2. Nf3 {[%emt 0:00:00]} Nc6 {[%emt 0:00:00]} 3. Bb5 {[%emt 0:00:00]} g6 {[%emt 0:00:00]} 4. c3 {[%emt 0:00:16]} Nf6 {[%emt 0:03:51]} 5. e5 {[%emt 0:00:15]} Nd5 {[%emt 0:00:49]} 6. d4 cxd4 {[%emt 0:00:23]} 7. Qb3 {[%emt 0:00:19]} e6 {[%emt 0:09:38]} 8. Bg5 {[%emt 0:05:00]} Qa5 {[%emt 0:07:33]} 9. O-O {[%emt 0:10:36]} dxc3 {[%emt 0:01:23]} 10. Nxc3 {[%emt 0:19:36]} Nxc3 {[%emt 0:00:36]} 11. bxc3 {[%emt 0:01:24]} Bg7 {[%emt 0:00:13]} 12. Rfe1 {[%emt 0:13:40]} h6 {[%emt 0:00:55]} 13. Bc1 {[%emt 0:06:38]} O-O {[%emt 0:04:35]} 14. Ba3 {[%emt 0:03:34]} Rd8 {[%emt 0:00:34]} 15. Rad1 {[%emt 0:03:47]} d5 {[%emt 0:04:40]} 16. exd6 {[%emt 0:15:19]} Qxc3 {[%emt 0:00:39]} 17. Qxc3 {[%emt 0:05:16]} Bxc3 {[%emt 0:00:16]} 18. Re3 {[%emt 0:00:11]} Bg7 {[%emt 0:02:19]} 19. Bxc6 {[%emt 0:00:38]} bxc6 {[%emt 0:00:01]} 20. Ne5 {[%emt 0:03:08]} Bxe5 {[%emt 0:01:09]} 21. Rxe5 {[%emt 0:00:35]} Bd7 {[%emt 0:00:06]} 22. f4 {[%emt 0:04:12]} Rdb8 {[%emt 0:00:41]} 23. Kf2 {[%emt 0:00:32]} f6 {[%emt 0:01:03]} 24. Ra5 {[%emt 0:01:02]} a6 {[%emt 0:00:10]} 25. Rd4 {[%emt 0:01:29]} Rb6 {[%emt 0:04:42]} 26. Bc5 {[%emt 0:02:12]} Rb2+ {[%emt 0:00:16]} 27. Kf3 {[%emt 0:00:59]} e5 {[%emt 0:02:31]} 28. fxe5 {[%emt 0:01:42]} fxe5 {[%emt 0:00:14]} 29. Rb4 {[%emt 0:00:42]} Rf8+ {[%emt 0:03:59]} 30. Kg3 {[%emt 0:00:01]} Rc2 {[%emt 0:00:28]} 31. Be3 {[%emt 0:00:52]} Rf5 {[%emt 0:08:55]} 32. h4 {[%emt 0:00:28]} Kf7 {[%emt 0:00:35]} 33. Bxh6 {[%emt 0:00:48]} c5 {[%emt 0:08:14]} 34. Rb7 {[%emt 0:00:38]} Ke6 {[%emt 0:00:36]} 35. Be3 {[%emt 0:00:58]} c4 {[%emt 0:04:09]} 36. Bc5 {[%emt 0:00:37]} Rxg2+ {[%emt 0:05:37]} 37. Kxg2 {[%emt 0:00:13]} Bc6+ {[%emt 0:00:03]} 38. Kg1 {[%emt 0:00:47]} Bxb7 {[%emt 0:00:04]} 39. Ra3 {[%emt 0:00:16]} e4 {[%emt 0:00:25]} 40. Bd4 {[%emt 0:00:44]} Rd5 {[%emt 0:05:26]} 41. Be3 {[%emt 0:04:57]} Rxd6 {[%emt 0:03:42]} 42. Kf2 {[%emt 0:01:53]} Rd7 {[%emt 0:01:18]} 43. Ra5 {[%emt 0:02:12]} Rd3 {[%emt 0:04:25]} 44. Rg5 {[%emt 0:06:09]} Kf7 {[%emt 0:04:43]} 45. Rc5 {[%emt 0:01:14]} Bd5 {[%emt 0:00:38]} 46. Ra5 {[%emt 0:00:33]} Ke6 {[%emt 0:02:59]} 47. Rxa6+ {[%emt 0:01:28]} Kf5 {[%emt 0:01:06]} 48. Ra5 {[%emt 0:05:46]} Kg4 {[%emt 0:00:41]} 49. Ra6 {[%emt 0:03:56]} Kh5 {[%emt 0:00:40]} 50. Bg5 {[%emt 0:02:12]} Rf3+ {[%emt 0:02:22]} 51. Ke1 {[%emt 0:02:02]} c3 {[%emt 0:00:51]} 52. Kd1 {[%emt 0:02:32]} Bc4 {[%emt 0:04:35]} 53. Rf6 {[%emt 0:00:02]} Bxa2 {[%emt 0:02:39]} 54. Rxf3 {[%emt 0:00:16]} exf3 {[%emt 0:00:13]} 55. Ke1 {[%emt 0:00:04]} Kg4 {[%emt 0:00:28]} 56. Kf2 {[%emt 0:00:04]} Bd5 {[%emt 0:00:36]} 57. Bf6 {[%emt 0:02:22]} c2 {[%emt 0:00:03]} 58. Bg5 {[%emt 0:00:02]} Ba8 {[%emt 0:00:04]} 0-1

[Event "CZE Extraliga 2019-20"]
[Site "Czech Republic"]
[Date "2019.12.02"]
[Round "3.4"]
[White "Roubalik, Jakub"]
[Black "Bartel, Mateusz"]
[Result "1/2-1/2"]
[ECO "E43"]
[WhiteElo "2410"]
[BlackElo "2636"]
[Annotator "ChessBase"]
[PlyCount "54"]
[EventDate "2019.09.15"]
[EventType "team-tourn"]
[EventCountry "CZE"]
[SourceTitle "playchess.com"]
[Source "ChessBase"]
[SourceQuality "1"]
[WhiteTeam "Duras"]
[BlackTeam "Novoborsky"]
[WhiteTeamCountry "CZE"]
[BlackTeamCountry "POL"]
[TimeControl "40/5400+30:1800+30"]

1. d4 {[%emt 0:00:00]} Nf6 {[%emt 0:00:11]} 2. c4 {[%emt 0:00:00]} e6 {[%emt 0:00:08]} 3. Nc3 {[%emt 0:00:00]} Bb4 {[%emt 0:00:07]} 4. e3 {[%emt 0:00:07]} O-O {[%emt 0:00:06]} 5. Nf3 {[%emt 0:00:14]} c5 {[%emt 0:06:31]} 6. Bd3 {[%emt 0:01:04]} b6 {[%emt 0:01:12]} 7. O-O {[%emt 0:00:52]} Bb7 {[%emt 0:01:32]} 8. a3 {[%emt 0:02:43]} Bxc3 {[%emt 0:02:41]} 9. bxc3 {[%emt 0:00:03]} Be4 {[%emt 0:00:55]} 10. Be2 {[%emt 0:02:20]} Nc6 {[%emt 0:02:01]} 11. Nd2 {[%emt 0:08:08]} Bg6 {[%emt 0:00:04]} 12. Bb2 {[%emt 0:00:52]} Rc8 {[%emt 0:05:13]} 13. Rc1 {[%emt 0:04:55]} Na5 {[%emt 0:06:36]} 14. Re1 {[%emt 0:04:44]} Ne4 {[%emt 0:05:46]} 15. Nf1 {[%emt 0:28:27]} Nd6 {[%emt 0:27:30]} 16. Nd2 {[%emt 0:01:08]} Be4 {[%emt 0:01:17]} 17. Nxe4 {[%emt 0:02:54]} Nxe4 {[%emt 0:00:04]} 18. Bd3 {[%emt 0:00:23]} Nd6 {[%emt 0:02:35]} 19. Qe2 {[%emt 0:00:35]} Qe7 {[%emt 0:00:36]} 20. e4 {[%emt 0:03:49]} e5 {[%emt 0:00:00]} 21. f4 {[%emt 0:03:01]} f6 {[%emt 0:00:00]} 22. dxe5 {[%emt 0:03:48]} fxe5 {[%emt 0:00:00]} 23. f5 {[%emt 0:00:12]} Qf7 {[%emt 0:00:30]} 24. Rcd1 {[%emt 0:00:08]} Naxc4 {[%emt 0:00:31]} 25. Bc1 {[%emt 0:01:27]} b5 {[%emt 0:00:03]} 26. Rf1 {[%emt 0:11:29]} a6 {[%emt 0:03:26]} 27. g4 {[%emt 0:00:10]} Nb6 {[%emt 0:04:47]} 1/2-1/2

[Event "CZE Extraliga 2019-20"]
[Site "Czech Republic"]
[Date "2019.12.02"]
[Round "3.5"]
[White "Krejci, Jan"]
[Black "Cerveny, Martin"]
[Result "0-1"]
[ECO "D02"]
[WhiteElo "2578"]
[BlackElo "2357"]
[Annotator "ChessBase"]
[PlyCount "110"]
[EventDate "2019.09.15"]
[EventType "team-tourn"]
[EventCountry "CZE"]
[SourceTitle "playchess.com"]
[Source "ChessBase"]
[SourceQuality "1"]
[WhiteTeam "Novoborsky"]
[BlackTeam "Duras"]
[WhiteTeamCountry "CZE"]
[BlackTeamCountry "CZE"]
[TimeControl "40/5400+30:1800+30"]

1. Nf3 {[%emt 0:00:00]} d5 {[%emt 0:00:01]} 2. d4 {[%emt 0:01:11]} Nf6 {[%emt 0:00:07]} 3. Bf4 {[%emt 0:06:27]} e6 {[%emt 0:02:22]} 4. e3 {[%emt 0:00:13]} Bd6 {[%emt 0:02:36]} 5. Bg3 {[%emt 0:01:28]} O-O {[%emt 0:02:00]} 6. Nbd2 {[%emt 0:00:41]} b6 {[%emt 0:00:16]} 7. c4 {[%emt 0:02:32]} Bb7 {[%emt 0:02:14]} 8. Bd3 {[%emt 0:02:45]} Nbd7 {[%emt 0:04:45]} 9. Qc2 {[%emt 0:06:19]} Qe7 {[%emt 0:01:30]} 10. O-O {[%emt 0:04:11]} Bxg3 {[%emt 0:05:36]} 11. hxg3 {[%emt 0:00:06]} c5 {[%emt 0:00:20]} 12. cxd5 {[%emt 0:01:40]} exd5 {[%emt 0:00:43]} 13. dxc5 {[%emt 0:02:43]} bxc5 {[%emt 0:00:43]} 14. Rfd1 {[%emt 0:00:40]} g6 {[%emt 0:10:41]} 15. Rac1 {[%emt 0:02:16]} Rfc8 {[%emt 0:03:17]} 16. Qb3 {[%emt 0:08:58]} Rc7 {[%emt 0:03:26]} 17. Qa3 {[%emt 0:00:14]} Ng4 {[%emt 0:05:29]} 18. Nh2 {[%emt 0:06:14]} h5 {[%emt 0:02:41]} 19. Be2 {[%emt 0:04:06]} Ndf6 {[%emt 0:01:42]} 20. Bf3 {[%emt 0:05:37]} Kg7 {[%emt 0:03:26]} 21. Rc2 {[%emt 0:02:26]} Rac8 {[%emt 0:11:11]} 22. Nb3 {[%emt 0:04:08]} Qd6 {[%emt 0:05:00]} 23. Rdc1 {[%emt 0:06:51]} Nxh2 {[%emt 0:00:59]} 24. Kxh2 {[%emt 0:00:02]} h4 {[%emt 0:00:09]} 25. Rxc5 {[%emt 0:00:27]} Rxc5 {[%emt 0:00:58]} 26. Nxc5 {[%emt 0:00:38]} hxg3+ {[%emt 0:01:00]} 27. fxg3 {[%emt 0:00:47]} g5 {[%emt 0:05:02]} 28. Qb4 {[%emt 0:07:28]} Rh8+ {[%emt 0:04:13]} 29. Kg1 {[%emt 0:00:01]} Bc8 {[%emt 0:00:52]} 30. Qe1 {[%emt 0:03:16]} Bf5 {[%emt 0:04:00]} 31. b4 {[%emt 0:01:36]} g4 {[%emt 0:00:20]} 32. Be2 {[%emt 0:02:23]} Nh5 {[%emt 0:00:07]} 33. Qc3+ {[%emt 0:00:00]} f6 {[%emt 0:00:51]} 34. Bd3 {[%emt 0:04:01]} Nxg3 {[%emt 0:01:20]} 35. Kf2 {[%emt 0:00:01]} Bxd3 {[%emt 0:04:37]} 36. Qxd3 {[%emt 0:00:01]} Rh5 {[%emt 0:00:23]} 37. Rd1 {[%emt 0:08:50]} Qe5 {[%emt 0:01:44]} 38. Ne6+ {[%emt 0:02:10]} Qxe6 {[%emt 0:02:03]} 39. Kxg3 {[%emt 0:00:01]} Qd6+ {[%emt 0:01:31]} 40. Kf2 {[%emt 0:00:28]} g3+ {[%emt 0:02:13]} 41. Ke2 {[%emt 0:33:34]} Qxb4 {[%emt 0:32:11]} 42. Rb1 {[%emt 0:00:00]} Qg4+ {[%emt 0:00:00]} 43. Kd2 {[%emt 0:00:00]} Qe4 {[%emt 0:00:00]} 44. Rb7+ {[%emt 0:00:00]} Kh6 {[%emt 0:00:00]} 45. Qf1 {[%emt 0:00:00]} Kg6 {[%emt 0:00:00]} 46. Qd3 {[%emt 0:00:00]} Rh2 {[%emt 0:00:00]} 47. Qxe4+ {[%emt 0:00:00]} dxe4 {[%emt 0:00:00]} 48. Rxa7 {[%emt 0:00:00]} Rxg2+ {[%emt 0:00:00]} 49. Ke1 {[%emt 0:00:00]} Rb2 {[%emt 0:00:00]} 50. Kf1 {[%emt 0:00:00]} Kg5 {[%emt 0:00:00]} 51. Rg7+ {[%emt 0:00:00]} Kh4 {[%emt 0:00:00]} 52. Rg6 {[%emt 0:00:00]} Kh3 {[%emt 0:00:00]} 53. Rh6+ {[%emt 0:00:00]} Kg4 {[%emt 0:00:00]} 54. Rxf6 {[%emt 0:00:00]} Rxa2 {[%emt 0:00:00]} 55. Rf8 {[%emt 0:00:00]} Rf2+ {[%emt 0:00:00]} 0-1

[Event "CZE Extraliga 2019-20"]
[Site "Czech Republic"]
[Date "2019.11.30"]
[Round "3.5"]
[White "Jansa, Vlastimil"]
[Black "Polak, Tomas"]
[Result "1/2-1/2"]
[ECO "C60"]
[WhiteElo "2452"]
[BlackElo "2527"]
[Annotator "ChessBase"]
[PlyCount "142"]
[EventDate "2019.09.15"]
[EventType "team-tourn"]
[EventCountry "CZE"]
[SourceTitle "playchess.com"]
[Source "ChessBase"]
[SourceQuality "1"]
[WhiteTeam "Lysa nad Labem"]
[BlackTeam "Brno"]
[TimeControl "40/5400+30:1800+30"]

1. e4 {[%emt 0:00:00]} e5 {[%emt 0:00:00]} 2. Nf3 {[%emt 0:00:00]} Nc6 {[%emt 0:00:09]} 3. Bb5 {[%emt 0:00:00]} Nge7 {[%emt 0:00:20]} 4. c3 {[%emt 0:01:02]} d5 {[%emt 0:00:32]} 5. Nxe5 {[%emt 0:05:17]} dxe4 {[%emt 0:00:27]} 6. Qe2 {[%emt 0:00:59]} Qd5 {[%emt 0:00:34]} 7. Nxc6 {[%emt 0:01:21]} Nxc6 {[%emt 0:00:17]} 8. d4 {[%emt 0:01:11]} Be6 {[%emt 0:00:33]} 9. Nd2 {[%emt 0:06:08]} O-O-O {[%emt 0:05:28]} 10. O-O {[%emt 0:05:56]} Re8 {[%emt 0:01:26]} 11. Nb3 {[%emt 0:06:42]} Bd7 {[%emt 0:17:59]} 12. Be3 {[%emt 0:07:32]} a6 {[%emt 0:09:22]} 13. c4 {[%emt 0:04:57]} Qf5 {[%emt 0:01:11]} 14. Bxc6 {[%emt 0:05:20]} Bxc6 {[%emt 0:00:13]} 15. d5 {[%emt 0:06:44]} Bd7 {[%emt 0:00:13]} 16. Bc5 {[%emt 0:02:36]} Qe5 {[%emt 0:10:07]} 17. Qe3 {[%emt 0:03:22]} Kb8 {[%emt 0:01:29]} 18. Rae1 {[%emt 0:06:26]} Bd6 {[%emt 0:13:44]} 19. Bxd6 {[%emt 0:00:32]} Qxd6 {[%emt 0:00:29]} 20. Nc5 {[%emt 0:04:40]} f5 {[%emt 0:00:59]} 21. Qd4 {[%emt 0:04:08]} Bc8 {[%emt 0:01:43]} 22. Re3 {[%emt 0:01:16]} Re7 {[%emt 0:06:07]} 23. f3 {[%emt 0:08:55]} b6 {[%emt 0:06:09]} 24. Na4 {[%emt 0:00:33]} exf3 {[%emt 0:05:24]} 25. Rxe7 {[%emt 0:01:33]} Qxe7 {[%emt 0:00:19]} 26. Rxf3 {[%emt 0:00:27]} Re8 {[%emt 0:01:18]} 27. Nc3 {[%emt 0:01:32]} g5 {[%emt 0:02:21]} 28. Rf2 {[%emt 0:01:24]} Qe1+ {[%emt 0:05:04]} 29. Rf1 {[%emt 0:00:14]} Qe5 {[%emt 0:00:04]} 30. Qxe5 {[%emt 0:00:20]} Rxe5 {[%emt 0:00:02]} 31. Kf2 {[%emt 0:00:15]} f4 {[%emt 0:00:38]} 32. Re1 {[%emt 0:05:45]} Rxe1 {[%emt 0:00:12]} 33. Kxe1 {[%emt 0:00:07]} Bf5 {[%emt 0:00:24]} 34. Kf2 {[%emt 0:00:50]} Bd3 {[%emt 0:04:20]} 35. b3 {[%emt 0:00:16]} g4 {[%emt 0:05:11]} 36. Ne2 {[%emt 0:01:18]} Bb1 {[%emt 0:00:13]} 37. Nc3 {[%emt 0:01:18]} Bd3 {[%emt 0:00:38]} 38. Ne2 {[%emt 0:00:59]} Bb1 {[%emt 0:01:38]} 39. a3 {[%emt 0:01:21]} Ba2 {[%emt 0:01:15]} 40. Nc1 {[%emt 0:02:26]} Bb1 {[%emt 0:00:03]} 41. Ne2 {[%emt 0:33:26]} Ba2 {[%emt 0:01:56]} 42. b4 {[%emt 0:00:00]} g3+ {[%emt 0:08:45]} 43. hxg3 {[%emt 0:00:00]} fxg3+ {[%emt 0:00:04]} 44. Kxg3 {[%emt 0:00:00]} Bxc4 {[%emt 0:00:05]} 45. Nc3 {[%emt 0:00:00]} Kc8 {[%emt 0:04:43]} 46. Kf4 {[%emt 0:00:00]} Kd7 {[%emt 0:00:34]} 47. Ke5 {[%emt 0:00:00]} Ke7 {[%emt 0:02:12]} 48. Ne4 {[%emt 0:00:00]} Bd3 {[%emt 0:03:14]} 49. Ng5 {[%emt 0:00:00]} Bc2 {[%emt 0:01:35]} 50. Ne6 {[%emt 0:00:00]} Kd7 {[%emt 0:00:10]} 51. g3 {[%emt 0:00:00]} Bd3 {[%emt 0:01:32]} 52. Nd4 {[%emt 0:00:00]} Ke7 {[%emt 0:03:57]} 53. g4 {[%emt 0:00:00]} Bb1 {[%emt 0:01:27]} 54. g5 {[%emt 0:00:00]} Bd3 {[%emt 0:00:11]} 55. Nc6+ {[%emt 0:00:35]} Kd7 {[%emt 0:01:00]} 56. Kd4 {[%emt 0:00:49]} Bf1 {[%emt 0:00:27]} 57. Ne5+ {[%emt 0:00:29]} Kd6 {[%emt 0:01:41]} 58. Ng4 {[%emt 0:00:11]} Bh3 {[%emt 0:00:12]} 59. Nf6 {[%emt 0:00:48]} Bf5 {[%emt 0:00:10]} 60. Ne4+ {[%emt 0:01:47]} Kd7 {[%emt 0:01:14]} 61. Ke5 {[%emt 0:00:18]} Bg6 {[%emt 0:00:05]} 62. a4 {[%emt 0:00:44]} a5 {[%emt 0:01:19]} 63. bxa5 {[%emt 0:00:50]} bxa5 {[%emt 0:00:04]} 64. Nc5+ {[%emt 0:00:37]} Ke7 {[%emt 0:00:13]} 65. Ne6 {[%emt 0:01:56]} Bc2 {[%emt 0:01:43]} 66. Nc5 {[%emt 0:00:35]} Bd1 {[%emt 0:00:38]} 67. Nb7 {[%emt 0:00:37]} Bxa4 {[%emt 0:00:06]} 68. Nxa5 {[%emt 0:00:06]} Kf7 {[%emt 0:00:43]} 69. Nc4 {[%emt 0:00:28]} Kg6 {[%emt 0:00:33]} 70. Kf4 {[%emt 0:00:22]} Bb3 {[%emt 0:00:15]} 71. Ne3 {[%emt 0:00:37]} h6 {[%emt 0:00:45]} 1/2-1/2

[Event "CZE Extraliga 2019-20"]
[Site "Czech Republic"]
[Date "2019.11.30"]
[Round "3.5"]
[White "Frolov, Artur"]
[Black "Pechac, Jergus"]
[Result "1/2-1/2"]
[ECO "C61"]
[WhiteElo "2425"]
[BlackElo "2489"]
[Annotator "ChessBase"]
[PlyCount "86"]
[EventDate "2019.09.15"]
[EventType "team-tourn"]
[EventCountry "CZE"]
[SourceTitle "playchess.com"]
[Source "ChessBase"]
[SourceQuality "1"]
[WhiteTeam "Praha"]
[BlackTeam "Pardubice"]
[TimeControl "40/5400+30:1800+30"]

1. e4 {[%emt 0:00:00]} e5 {[%emt 0:01:24]} 2. Nf3 {[%emt 0:00:00]} Nc6 {[%emt 0:00:07]} 3. Bb5 {[%emt 0:00:00]} Nd4 {[%emt 0:02:14]} 4. Nxd4 {[%emt 0:00:03]} exd4 {[%emt 0:00:04]} 5. O-O {[%emt 0:00:08]} g6 {[%emt 0:01:00]} 6. Re1 {[%emt 0:02:51]} Bg7 {[%emt 0:00:25]} 7. c3 {[%emt 0:03:51]} Ne7 {[%emt 0:00:27]} 8. cxd4 {[%emt 0:02:18]} Bxd4 {[%emt 0:00:05]} 9. Nc3 {[%emt 0:01:13]} O-O {[%emt 0:00:26]} 10. d3 {[%emt 0:01:46]} Bg7 {[%emt 0:02:54]} 11. Bg5 {[%emt 0:01:08]} h6 {[%emt 0:02:15]} 12. Bh4 {[%emt 0:00:44]} c6 {[%emt 0:00:33]} 13. Ba4 {[%emt 0:06:04]} g5 {[%emt 0:02:35]} 14. Bg3 {[%emt 0:00:04]} d5 {[%emt 0:00:33]} 15. exd5 {[%emt 0:12:54]} Nxd5 {[%emt 0:00:51]} 16. Nxd5 {[%emt 0:00:47]} Qxd5 {[%emt 0:01:56]} 17. Bb3 {[%emt 0:01:12]} Qd4 {[%emt 0:01:34]} 18. Re7 {[%emt 0:02:06]} Qxb2 {[%emt 0:12:21]} 19. Rb1 {[%emt 0:00:48]} Qf6 {[%emt 0:02:58]} 20. Rc7 {[%emt 0:01:07]} b6 {[%emt 0:04:39]} 21. Rc1 {[%emt 0:07:25]} Be6 {[%emt 0:02:52]} 22. R1xc6 {[%emt 0:02:26]} Bxb3 {[%emt 0:02:01]} 23. axb3 {[%emt 0:01:07]} Qf5 {[%emt 0:01:58]} 24. Qf3 {[%emt 0:28:37]} Qxf3 {[%emt 0:03:24]} 25. gxf3 {[%emt 0:00:41]} Rfd8 {[%emt 0:01:05]} 26. Bd6 {[%emt 0:00:35]} Bb2 {[%emt 0:15:12]} 27. Kg2 {[%emt 0:03:01]} Kg7 {[%emt 0:02:46]} 28. Rb7 {[%emt 0:04:18]} h5 {[%emt 0:00:25]} 29. h4 {[%emt 0:00:30]} gxh4 {[%emt 0:00:55]} 30. f4 {[%emt 0:00:33]} Bf6 {[%emt 0:03:55]} 31. Be5 {[%emt 0:04:38]} Bxe5 {[%emt 0:00:33]} 32. fxe5 {[%emt 0:00:02]} Rxd3 {[%emt 0:00:11]} 33. Rf6 {[%emt 0:02:05]} Rf8 {[%emt 0:00:37]} 34. Rf4 {[%emt 0:04:56]} Kg6 {[%emt 0:04:11]} 35. Rf6+ {[%emt 0:00:10]} Kg5 {[%emt 0:02:05]} 36. Rbxf7 {[%emt 0:01:10]} Rxf7 {[%emt 0:08:49]} 37. Rxf7 {[%emt 0:00:06]} Rxb3 {[%emt 0:00:33]} 38. e6 {[%emt 0:02:03]} Rb2 {[%emt 0:00:17]} 39. Kh3 {[%emt 0:01:13]} Rb3+ {[%emt 0:00:11]} 40. Kg2 {[%emt 0:00:04]} Rb2 {[%emt 0:00:07]} 41. Kh3 {[%emt 0:31:43]} Rb3+ {[%emt 0:30:09]} 42. Kg2 {[%emt 0:00:17]} Rb2 {[%emt 0:00:07]} 43. Kh3 {[%emt 0:00:47]} Rb3+ {[%emt 0:00:07]} 1/2-1/2

[Event "CZE Extraliga 2019-20"]
[Site "Czech Republic"]
[Date "2019.11.30"]
[Round "3.5"]
[White "Hollan, Martin"]
[Black "Biolek, Richard Jr."]
[Result "0-1"]
[ECO "A84"]
[WhiteElo "2403"]
[BlackElo "2454"]
[Annotator "ChessBase"]
[PlyCount "80"]
[EventDate "2019.09.15"]
[EventType "team-tourn"]
[EventCountry "CZE"]
[SourceTitle "playchess.com"]
[Source "ChessBase"]
[SourceQuality "1"]
[WhiteTeam "Kromeriz"]
[BlackTeam "Poruba"]
[TimeControl "40/5400+30:1800+30"]

1. c4 {[%emt 0:00:00]} f5 {[%emt 0:00:00]} 2. d4 {[%emt 0:00:00]} e6 {[%emt 0:00:05]} 3. Nf3 {[%emt 0:00:08]} Nf6 {[%emt 0:00:05]} 4. g3 {[%emt 0:00:09]} d5 {[%emt 0:00:15]} 5. Bg2 {[%emt 0:00:11]} c6 {[%emt 0:00:04]} 6. O-O {[%emt 0:00:45]} Bd6 {[%emt 0:00:03]} 7. b3 {[%emt 0:04:03]} Qe7 {[%emt 0:00:12]} 8. a4 {[%emt 0:00:49]} a5 {[%emt 0:02:25]} 9. Ba3 {[%emt 0:00:35]} Bxa3 {[%emt 0:01:05]} 10. Nxa3 {[%emt 0:00:41]} O-O {[%emt 0:06:22]} 11. Nc2 {[%emt 0:04:12]} Nbd7 {[%emt 0:03:50]} 12. Nce1 {[%emt 0:07:08]} dxc4 {[%emt 0:10:28]} 13. bxc4 {[%emt 0:00:11]} e5 {[%emt 0:00:02]} 14. dxe5 {[%emt 0:07:26]} Nxe5 {[%emt 0:00:08]} 15. Nxe5 {[%emt 0:00:06]} Qxe5 {[%emt 0:00:05]} 16. Nd3 {[%emt 0:00:09]} Qe7 {[%emt 0:00:53]} 17. Qc2 {[%emt 0:00:12]} Ne4 {[%emt 0:16:46]} 18. Rab1 {[%emt 0:05:36]} Be6 {[%emt 0:14:36]} 19. Rfc1 {[%emt 0:17:53]} Rae8 {[%emt 0:12:47]} 20. Qb2 {[%emt 0:09:05]} Bc8 {[%emt 0:00:13]} 21. Rc2 {[%emt 0:01:39]} f4 {[%emt 0:09:01]} 22. Qb6 {[%emt 0:10:14]} fxg3 {[%emt 0:01:56]} 23. hxg3 {[%emt 0:01:34]} Qg5 {[%emt 0:06:39]} 24. Qd4 {[%emt 0:17:30]} Nf6 {[%emt 0:00:05]} 25. Qc5 {[%emt 0:03:46]} Qh6 {[%emt 0:01:17]} 26. Bf3 {[%emt 0:00:16]} Ng4 {[%emt 0:05:28]} 27. Bxg4 {[%emt 0:00:42]} Bxg4 {[%emt 0:00:02]} 28. f4 {[%emt 0:07:09]} Rf5 {[%emt 0:03:50]} 29. Ne5 {[%emt 0:01:25]} Rexe5 {[%emt 0:02:21]} 30. fxe5 {[%emt 0:00:05]} Rh5 {[%emt 0:00:05]} 31. Rf1 {[%emt 0:01:18]} Rh1+ {[%emt 0:00:34]} 32. Kf2 {[%emt 0:00:05]} Qh2+ {[%emt 0:00:15]} 33. Ke1 {[%emt 0:00:14]} Rxf1+ {[%emt 0:00:47]} 34. Kxf1 {[%emt 0:00:04]} Qxg3 {[%emt 0:00:06]} 35. Qf2 {[%emt 0:00:36]} Qxe5 {[%emt 0:03:10]} 36. Rd2 {[%emt 0:00:28]} h5 {[%emt 0:00:54]} 37. Rd8+ {[%emt 0:01:30]} Kh7 {[%emt 0:00:01]} 38. e3 {[%emt 0:00:33]} Qe4 {[%emt 0:00:52]} 39. Qf4 {[%emt 0:00:30]} Qh1+ {[%emt 0:00:05]} 40. Kf2 {[%emt 0:00:07]} Qh4+ {[%emt 0:00:01] Rd3} 0-1

[Event "CZE Extraliga 2019-20"]
[Site "Czech Republic"]
[Date "2019.11.30"]
[Round "3.5"]
[White "Szotkowski, Jakub"]
[Black "Malik, Jan"]
[Result "1/2-1/2"]
[ECO "D47"]
[WhiteElo "2388"]
[BlackElo "2291"]
[Annotator "NA"]
[PlyCount "91"]
[EventDate "2019.09.15"]
[EventType "team-tourn"]
[EventCountry "CZE"]
[SourceTitle "playchess.com"]
[Source "ChessBase"]
[SourceQuality "1"]
[WhiteTeam "Frydek-Mistek"]
[BlackTeam "Ostrava"]
[TimeControl "40/5400+30:1800+30"]

1. d4 {[%emt 0:00:00]} d5 {[%emt 0:00:00]} 2. c4 {[%emt 0:00:00]} c6 {[%emt 0:00:00]} 3. Nf3 {[%emt 0:00:21]} Nf6 {[%emt 0:00:35]} 4. Nc3 {[%emt 0:01:45]} e6 {[%emt 0:01:06]} 5. e3 {[%emt 0:08:00]} Nbd7 {[%emt 0:01:05]} 6. Be2 {[%emt 0:04:33]} dxc4 {[%emt 0:03:09]} 7. Bxc4 {[%emt 0:00:25]} b5 {[%emt 0:00:06]} 8. Be2 {[%emt 0:00:46]} Bb7 {[%emt 0:03:44]} 9. O-O {[%emt 0:00:20]} Bd6 {[%emt 0:01:21]} 10. b3 {[%emt 0:07:00]} O-O {[%emt 0:00:39]} 11. Bb2 {[%emt 0:00:15]} a6 {[%emt 0:01:49]} 12. a4 {[%emt 0:04:17]} b4 {[%emt 0:01:13]} 13. Nb1 $1 {[%emt 0:00:58]} c5 {[%emt 0:00:24]} 14. Nbd2 $11 {[%emt 0:03:03]} Ne4 {[%emt 0:10:32]} 15. Nxe4 {[%emt 0:07:18]} Bxe4 {[%emt 0:00:50]} 16. Rc1 {[%emt 0:01:35]} Qe7 {[%emt 0:05:50]} 17. Nd2 {[%emt 0:15:03]} Bd5 {[%emt 0:08:30]} 18. Bf3 {[%emt 0:05:05]} Bxf3 {[%emt 0:01:07]} 19. Nxf3 {[%emt 0:01:59]} Rfc8 {[%emt 0:03:03]} 20. d5 {[%emt 0:06:27]} Nb6 {[%emt 0:07:08]} 21. dxe6 {[%emt 0:06:55]} Qxe6 {[%emt 0:00:40]} 22. g3 {[%emt 0:02:09]} Be7 {[%emt 0:02:19]} 23. a5 {[%emt 0:04:31]} Nd5 {[%emt 0:03:00]} 24. Rc4 {[%emt 0:02:06]} Ra7 {[%emt 0:06:40]} 25. Qc2 {[%emt 0:01:40]} Rd7 {[%emt 0:02:11]} 26. e4 {[%emt 0:04:35]} Nc7 {[%emt 0:06:32]} 27. Ne5 {[%emt 0:01:41]} Rdd8 {[%emt 0:00:43]} 28. Nd3 {[%emt 0:01:23]} Nb5 {[%emt 0:06:41]} 29. Nf4 {[%emt 0:01:15]} Qc6 {[%emt 0:05:45]} 30. Nd5 {[%emt 0:00:52]} Bf8 {[%emt 0:00:02]} 31. Nxb4 {[%emt 0:02:47]} Qb7 {[%emt 0:00:52]} 32. Nd5 {[%emt 0:02:01]} Nd6 {[%emt 0:00:56]} 33. Ra4 {[%emt 0:01:08]} Nxe4 {[%emt 0:05:02]} 34. Rxe4 {[%emt 0:00:07]} Qxd5 {[%emt 0:00:22]} 35. Rc1 {[%emt 0:02:50]} Rb8 {[%emt 0:01:52]} 36. Rc4 {[%emt 0:00:23]} Qd3 {[%emt 0:00:49]} 37. Ba3 {[%emt 0:01:04]} Qxc2 {[%emt 0:02:14]} 38. R1xc2 {[%emt 0:00:12]} Rxb3 {[%emt 0:00:47]} 39. Bxc5 {[%emt 0:00:06]} Bxc5 {[%emt 0:00:55]} 40. Rxc5 {[%emt 0:00:07]} Ra3 {[%emt 0:00:18]} 41. Rd2 {[%emt 0:04:26]} Ra8 {[%emt 0:00:14]} 42. Rd6 {[%emt 0:03:09]} g6 {[%emt 0:02:23]} 43. h4 {[%emt 0:00:14]} h5 {[%emt 0:00:17]} 44. Kg2 {[%emt 0:00:05]} Ra7 {[%emt 0:01:06]} 45. Rb6 {[%emt 0:07:06]} Kg7 {[%emt 0:00:23]} 46. Rd5 1/2-1/2